[Event "Krakow Championship-A 2022"]
[Site "Krakow"]
[Date "2022.06.26"]
[Round "3.10"]
[White "Paszewski, Mateusz"]
[Black "Klimkowski, Jan"]
[Result "1/2-1/2"]
[ECO "A05"]
[WhiteElo "2286"]
[BlackElo "2401"]
[Annotator "TA"]
[PlyCount "37"]
[EventDate "2022.06.25"]
[EventType "swiss"]
[EventCountry "POL"]
[SourceTitle "playchess.com"]
[Source "ChessBase"]
[SourceQuality "1"]
[TimeControl "40/5400+30:1800+30"]

{[%evp 19,37,0,0,0,-1,-24,-17,-10,-31,-49,33,31,54,50,59,57,55,44,90,39]} 1. Nf3 {[%emt 0:00:56]} Nf6 {[%emt 0:00:06]} 2. c4 {[%emt 0:00:02]} e6 {[%emt 0:00:09]} 3. g3 {[%emt 0:00:18]} Be7 {[%emt 0:00:09]} 4. Bg2 {[%emt 0:00:07]} O-O {[%emt 0:00:06]} 5. O-O {[%emt 0:02:10]} d5 {[%emt 0:00:06]} 6. b3 {[%emt 0:00:03]} d4 {[%emt 0:00:10]} 7. e3 {[%emt 0:00:47]} c5 {[%emt 0:00:07]} 8. exd4 {[%emt 0:00:04]} cxd4 {[%emt 0:00:05]} 9. d3 {[%emt 0:04:36]} Nc6 {[%emt 0:00:07]} 10. Re1 {[%emt 0:00:04][%cal Bf1e1,Be1e5,Be5b5][%mdl 32]} Nd7 {[%emt 0:06:33]} 11. Ba3 {[%emt 0:16:03] A14: English Opening: 1...e6 with b3 by White.} e5 {[%emt 0:06:57]} 12. b4 {[%emt 0:18:29]} Bxb4 {[%emt 0:10:43]} 13. Bxb4 {[%emt 0:00:08] The position is equal.} Nxb4 {[%emt 0:00:04]} 14. Nxe5 {[%emt 0:00:37]} Nxe5 {[%emt 0:00:12]} ({Better is} 14... Qa5 $15 15. Nxd7 Bxd7) 15. Rxe5 $14 {[%emt 0:00:01]} Qd6 {[%emt 0:06:22]} 16. Rb5 {[%emt 0:05:01] [#] Hoping for c5.} Qe7 $146 {[%emt 0:04:03]} ({Predecessor:} 16... Re8 17. Nd2 Nc6 18. Rab1 Qg6 19. Be4 Qh6 20. Rh5 Qf6 21. Bxh7+ Kf8 22. Ne4 Qd8 {1-0 (32) Jones,G (2665)-Bacrot,E (2695) Chess.com INT 2017}) 17. a3 {[%emt 0:22:37]} Re8 {[%emt 0:06:42] Strongly threatening ...Qe1+.} 18. Nd2 {[%emt 0:06:49]} ({Wrong is} 18. axb4 $2 Qe1+ 19. Qxe1 Rxe1+ 20. Bf1 Bh3 $19) 18... Nc6 {[%emt 0:24:28]} (18... Nxd3 $14 {is more appropriate.} 19. Ne4 a6) 19. Qc2 {[%emt 0:04:37] Weighted Error Value: White=0.04 (flawless) /Black=0.21 (precise)} (19. Bd5 $16) 1/2-1/2

[Event "Krakow Championship-A 2022"]
[Site "Krakow"]
[Date "2022.06.26"]
[Round "3.11"]
[White "Murphy, Conor E"]
[Black "Gjestemoen-VonHirsch, Andre"]
[Result "1-0"]
[ECO "B31"]
[WhiteElo "2395"]
[BlackElo "2236"]
[Annotator "TA"]
[PlyCount "77"]
[EventDate "2022.06.25"]
[EventType "swiss"]
[EventCountry "POL"]
[SourceTitle "playchess.com"]
[Source "ChessBase"]
[SourceQuality "1"]
[TimeControl "40/5400+30:1800+30"]

{[%evp 9,77,6,20,21,27,12,46,44,106,16,75,70,123,131,137,107,114,112,111,101,110,106,113,111,100,109,113,112,119,121,125,122,109,79,84,89,191,168,155,139,153,163,259,262,412,397,412,339,375,381,413,406,412,391,400,395,448,448,613,606,599,593,589,582,733,710,29967,29964,29985,29986]} 1. e4 {[%emt 0:05:38]} c5 {[%emt 0:00:16]} 2. Nf3 {[%emt 0:00:17]} Nc6 {[%emt 0:00:24]} 3. Bb5 {[%emt 0:00:52]} g6 {[%emt 0:00:10]} 4. O-O {[%emt 0:00:46]} Bg7 {[%emt 0:00:13]} 5. d3 {[%emt 0:00:43]} e5 {[%emt 0:00:24]} 6. a3 {[%emt 0:01:09][%cal Ob2b4] B31: Sicilian: 2...Nc6 3 Bb5 g6.} Nge7 {[%emt 0:10:47]} 7. b4 {[%emt 0:01:00]} cxb4 {[%emt 0:12:49]} 8. axb4 {[%emt 0:01:03] [#] White is slightly better.} Nxb4 $146 {[%emt 0:00:27]} (8... O-O $14) ({Predecessor:} 8... O-O 9. c4 Nxb4 10. Ba3 Nbc6 11. Bd6 b6 12. Nc3 Re8 13. c5 Bb7 14. Bc4 Nc8 {0-1 (43) Demchenko,A (2654)-Maghsoodloo,P (2701) Warsaw 2021}) 9. Nbd2 {[%emt 0:07:21]} (9. Ba3 $16 Nbc6 10. Bd6) 9... Nbc6 {[%emt 0:11:14]} (9... a6 $11) 10. Nc4 {[%emt 0:04:15] [#] aiming for Nd6+.} d6 {[%emt 0:00:37]} (10... O-O $1 $14) 11. Ba3 $16 {[%emt 0:02:15]} O-O {[%emt 0:00:35]} 12. Nxd6 {[%emt 0:07:28]} Bg4 {[%emt 0:10:35]} 13. c3 {[%emt 0:12:25] Against Nd4. Black must now prevent Bc4.} Qd7 {[%emt 0:15:52]} 14. h3 {[%emt 0:04:41]} Bxf3 {[%emt 0:03:20]} 15. Qxf3 {[%emt 0:00:10]} Nc8 {[%emt 0:00:15]} 16. Nc4 {[%emt 0:03:16][%cal Bd6c4,Bc4e3,Be3g4][%mdl 32]} Rd8 {[%emt 0:00:33]} 17. Ne3 $36 {[%emt 0:08:17][%mdl 2048] White is really pushing.} a6 {[%emt 0:13:32]} 18. Bc4 {[%emt 0:01:27]} b5 {[%emt 0:07:32]} 19. Bb3 {[%emt 0:03:40]} a5 {[%emt 0:03:50]} 20. Bc5 {[%emt 0:03:17]} Rb8 {[%emt 0:02:48]} 21. Ng4 {[%emt 0:04:41] Hoping for Nf6+.} a4 {[%emt 0:01:31]} 22. Ba2 {[%emt 0:01:30] Strongly threatening Nf6+. 0x0.00086210446edp-1022s more active pieces. This bishop pair is nice.} b4 {[%emt 0:00:48]} (22... Kh8 $16 {is a better defense.}) 23. cxb4 $18 {[%emt 0:03:44] And now Nf6+ would win.} Nd4 {[%emt 0:02:53]} 24. Qd1 {[%emt 0:08:09]} h5 {[%emt 0:00:24]} 25. Ne3 {[%emt 0:00:40]} Ne7 {[%emt 0:00:39]} (25... Nb6 $142 26. Nd5 Nxd5 27. Bxd5 Nb3) 26. Bc4 {[%emt 0:02:16]} Nb3 {[%emt 0:00:26]} (26... Ne6 {was called for.} 27. Bxe6 Qxe6 28. Bxe7 Qxe7 29. Rxa4 Bf8) 27. Bxb3 {[%emt 0:01:01]} axb3 {[%emt 0:00:03]} 28. Qxb3 {[%emt 0:00:27]} Bf8 {[%emt 0:00:59]} 29. Ra7 {[%emt 0:03:12]} Rb7 {[%emt 0:00:10]} 30. Rxb7 {[%emt 0:00:53]} Qxb7 {[%emt 0:00:04]} 31. Bxe7 {[%emt 0:03:17]} Bxe7 {[%emt 0:00:20]} 32. Nd5 {[%emt 0:00:18]} Bc5 {[%emt 0:00:50]} 33. Rc1 {[%emt 0:01:19]} Rc8 {[%emt 0:01:02][%cal Oc5f2]} 34. Qb1 {[%emt 0:01:38]} Bd6 {[%emt 0:00:25]} 35. Rxc8+ {[%emt 0:00:40]} Qxc8 {[%emt 0:00:04]} 36. b5 {[%emt 0:00:41]} Qb7 {[%emt 0:01:00]} 37. Qc1 {[%emt 0:01:34]} Qxb5 {[%emt 0:00:37] [#]} 38. Qh6 $1 {[%emt 0:00:22][%cal Rd5f6]} f6 {[%emt 0:00:30]} 39. Qxg6+ {[%emt 0:00:13] Weighted Error Value: White=0.09 (flawless) /Black=0.52} 1-0

[Event "Krakow Championship-A 2022"]
[Site "Krakow"]
[Date "2022.06.26"]
[Round "3.12"]
[White "Szustakowski, Antoni"]
[Black "Seemann, Jakub"]
[Result "0-1"]
[ECO "E10"]
[WhiteElo "2265"]
[BlackElo "2363"]
[Annotator "TA"]
[PlyCount "164"]
[EventDate "2022.06.25"]
[EventType "swiss"]
[EventCountry "POL"]
[SourceTitle "playchess.com"]
[Source "ChessBase"]
[SourceQuality "1"]
[TimeControl "40/5400+30:1800+30"]

{[%evp 19,164,10,8,8,0,0,29,20,12,0,15,11,41,37,43,37,47,44,54,10,22,14,14,30,21,13,16,0,27,0,0,0,0,0,0,0,0,0,0,0,0,0,0,0,0,0,0,0,0,0,0,0,0,0,0,0,0,0,0,0,0,0,0,0,0,0,0,0,0,0,0,-6,-6,-6,-6,-6,-6,-6,-6,-14,-14,-14,-14,-14,-14,-14,-15,-15,-15,-15,-15,-95,-95,-95,-95,-95,-102,-110,-113,-113,-113,-213,-447,-433,-71,-351,-405,-418,-394,-1102,-1023,-1694,-1674,-1415,-946,-1295,-1263,-1163,-1146,-932,-870,-2298,-2170,-5270,-5043,-2301,-2052,-29980,-29981,-29984,-29984,-29985,-29986,-29986,-29987,-29987,-29988,-29988,-29989,-29989,-29990,-29990,-29991,-29995,-29995,-29998,-6145]} 1. d4 {[%emt 0:00:04]} Nf6 {[%emt 0:00:07]} 2. c4 {[%emt 0:00:05]} e6 {[%emt 0:00:08]} 3. Nf3 {[%emt 0:00:22]} d5 {[%emt 0:00:14]} 4. e3 {[%emt 0:00:22]} b6 {[%emt 0:00:23]} 5. b3 {[%emt 0:00:35]} Bb7 {[%emt 0:00:05]} 6. Bd3 {[%emt 0:00:25]} Nbd7 {[%emt 0:00:07]} 7. O-O {[%emt 0:00:37]} Bd6 {[%emt 0:00:05]} 8. Bb2 {[%emt 0:01:42]} O-O {[%emt 0:00:14]} 9. Nc3 {[%emt 0:03:50][%cal Bb1c3,Bc3e2,Be2g3][%mdl 32]} c5 {[%emt 0:01:49]} 10. cxd5 {[%emt 0:00:54]} exd5 {[%emt 0:00:54]} 11. Rc1 {[%emt 0:03:59] E14: Queen's Indian: Classical Variation (4 e3).} Re8 {[%emt 0:01:14]} 12. Ne2 {[%emt 0:07:08]} Qe7 {[%emt 0:02:21]} 13. Ng3 {[%emt 0:01:25] Threatening Nf5. White has an edge.} g6 {[%emt 0:00:20] Prevents Nf5.} 14. Re1 {[%emt 0:01:49]} Ne4 {[%emt 0:11:56] [#]} 15. Bb5 $146 {[%emt 0:13:14]} ({Predecessor:} 15. Bb1 Rad8 16. Qe2 h5 17. dxc5 Nxg3 18. hxg3 bxc5 19. Qd3 {0-1 (30) Rolvag,B (1970)-Sigeman,J (2138) Helsingor 2015}) 15... Rad8 {[%emt 0:08:05]} 16. dxc5 {[%emt 0:13:03]} bxc5 {[%emt 0:00:41]} 17. Nxe4 {[%emt 0:00:08]} dxe4 {[%emt 0:06:47]} 18. Nd2 {[%emt 0:00:06]} ({Don't blunder} 18. Ng5 $2 Be5 19. Nxf7 (19. Bxe5 $2 Nxe5 20. Qe2 Qxg5 $19) 19... Kxf7 $19) 18... a6 {[%emt 0:02:15]} 19. Bxd7 {[%emt 0:01:29]} Rxd7 {[%emt 0:01:26]} 20. Qc2 {[%emt 0:03:34]} Bxh2+ {[%emt 0:01:35]} 21. Kxh2 {[%emt 0:00:02]} Qd6+ {[%emt 0:00:25]} 22. Kg1 {[%emt 0:00:04]} Qxd2 {[%emt 0:00:06]} 23. Ba3 {[%emt 0:00:01]} c4 {[%emt 0:13:07]} 24. Qxc4 {[%emt 0:08:13]} (24. bxc4 $5 {[%cal Rc2a4]} Qxc2 25. Rxc2 $11) 24... Qxa2 {[%emt 0:01:12]} 25. Ra1 {[%emt 0:01:21]} Qd2 {[%emt 0:00:10]} 26. Rad1 {[%emt 0:00:04]} Qxd1 {[%emt 0:00:14]} 27. Rxd1 {[%emt 0:00:02]} Rxd1+ {[%emt 0:00:07]} 28. Kh2 {[%emt 0:00:02]} Rd5 {[%emt 0:13:14]} 29. Qc7 {[%emt 0:06:42]} Rb5 {[%emt 0:08:49]} 30. Qd7 {[%emt 0:08:49]} Ra8 {[%emt 0:03:45]} 31. Bb2 {[%emt 0:01:36]} Rxb3 {[%emt 0:04:08]} 32. Qd4 {[%emt 0:00:06][%csl Gb2][%cal Rd4h8] [#]} Rxb2 $1 {[%emt 0:00:16]} 33. Qxb2 $11 {[%emt 0:00:03][%mdl 4096] Endgame KQ-KRB} Bc6 {[%emt 0:03:07]} 34. Qb6 {[%emt 0:00:30]} Bb5 {[%emt 0:00:16]} 35. Kg3 {[%emt 0:00:26]} Re8 {[%emt 0:00:21]} 36. Kf4 {[%emt 0:01:50]} h6 {[%emt 0:00:24]} 37. f3 {[%emt 0:03:25]} Bf1 {[%emt 0:02:15]} 38. Kg3 {[%emt 0:02:12]} exf3 {[%emt 0:02:03]} 39. gxf3 {[%emt 0:00:07]} Rc8 {[%emt 0:00:58]} 40. Kf4 {[%emt 0:01:53]} Be2 {[%emt 0:01:28]} 41. Kg3 {[%emt 0:31:26]} Bb5 {[%emt 0:31:34]} 42. Kf4 {[%emt 0:01:50]} Rc4+ {[%emt 0:00:20]} 43. Ke5 {[%emt 0:01:46]} Rc6 {[%emt 0:00:28]} 44. Qd8+ {[%emt 0:01:04]} Kg7 {[%emt 0:00:08]} 45. e4 {[%emt 0:01:09]} Be2 {[%emt 0:05:10]} 46. f4 {[%emt 0:02:09]} Re6+ {[%emt 0:01:08]} 47. Kd4 $1 {[%emt 0:00:07]} Bf3 {[%emt 0:00:08]} 48. e5 {[%emt 0:00:16]} Bg4 {[%emt 0:01:09]} 49. Kc4 {[%emt 0:01:54]} Bf5 {[%emt 0:02:56]} 50. Kb4 {[%emt 0:01:00]} Rc6 {[%emt 0:00:20]} 51. Ka5 {[%emt 0:02:58]} Bg4 {[%emt 0:00:00]} 52. Kb4 {[%emt 0:00:00]} Be2 {[%emt 0:00:00]} 53. Kb3 {[%emt 0:00:00]} h5 {[%emt 0:00:00]} 54. Kb2 {[%emt 0:00:00]} Bg4 {[%emt 0:00:00]} 55. Kb3 {[%emt 0:00:00]} (55. Ka3 $1 $11) 55... Be6+ $17 {[%emt 0:00:00]} 56. Kb2 {[%emt 0:00:00]} Rc4 {[%emt 0:00:00]} 57. Qf6+ {[%emt 0:00:00]} Kg8 {[%emt 0:00:00]} 58. Ka3 {[%emt 0:00:00]} a5 {[%emt 0:00:00]} 59. Qd8+ {[%emt 0:00:00]} Kh7 {[%emt 0:00:00]} 60. Qg5 {[%emt 0:00:00]} (60. Qf6 $17) 60... Rc2 $19 {[%emt 0:00:00][%csl Ge6][%cal Rc2a2]} 61. Ka4 {[%emt 0:00:00]} Ra2+ {[%emt 0:00:00]} 62. Kb5 {[%emt 0:00:00] [#] Now White is beyond hope.} a4 $1 {[%emt 0:00:00] Strongly threatening ...a3.} 63. Qg1 {[%emt 0:00:00]} Re2 {[%emt 0:00:00] Threatens to win with ...a3.} 64. Kxa4 $2 {[%emt 0:00:31]} (64. Qg3 Bd7+ 65. Ka5) 64... Re4+ {[%emt 0:00:00]} 65. Ka3 {[%emt 0:00:04]} Rxf4 {[%emt 0:00:00]} 66. Kb2 {[%emt 0:00:36]} Rf5 {[%emt 0:00:00]} 67. Qh2 {[%emt 0:00:30]} Kh6 {[%emt 0:00:00]} 68. Kc3 {[%emt 0:00:41]} g5 {[%emt 0:00:00]} 69. Kd4 {[%emt 0:00:15]} h4 {[%emt 0:00:00][%cal Bh5h4,Bh4h3][%mdl 32]} 70. Ke4 {[%emt 0:01:12]} Kh5 {[%emt 0:00:00] Hoping for ...g4.} 71. Qd2 {[%emt 0:02:01]} h3 {[%emt 0:00:43]} 72. Qd1+ {[%emt 0:02:04]} g4 {[%emt 0:00:56] ...h2 is the strong threat.} 73. Qd8 {[%emt 0:00:04]} g3 {[%emt 0:00:44] Black mates.} 74. Qd1+ {[%emt 0:00:40]} Kg6 {[%emt 0:02:23]} 75. Qd8 {[%emt 0:01:24]} g2 {[%emt 0:01:19]} 76. Qh8 {[%emt 0:00:14]} Rg5 {[%emt 0:00:44]} 77. Kf4 {[%emt 0:00:18]} Rg4+ {[%emt 0:00:22]} 78. Kf3 {[%emt 0:00:05]} g1=Q {[%emt 0:00:45]} 79. Qg8+ {[%emt 0:00:33]} Kf5 {[%emt 0:00:05]} 80. Qh7+ {[%emt 0:00:04]} Kxe5 {[%emt 0:00:18]} 81. Qe4+ {[%emt 0:00:03]} Kf6 {[%emt 0:00:40]} 82. Qd4+ {[%emt 0:00:10]} Qxd4 {[%emt 0:00:05] Weighted Error Value: White=0.08 (flawless) /Black=0.03 (flawless)} (82... Rxd4 $142 83. Ke2 Bg4#) 0-1

[Event "Krakow Championship-A 2022"]
[Site "Krakow"]
[Date "2022.06.26"]
[Round "3.13"]
[White "Kantorik, Marian"]
[Black "Holtel, Jasper"]
[Result "0-1"]
[ECO "A50"]
[WhiteElo "2211"]
[BlackElo "2347"]
[Annotator "TA"]
[PlyCount "58"]
[EventDate "2022.06.25"]
[EventType "swiss"]
[EventCountry "POL"]
[SourceTitle "playchess.com"]
[Source "ChessBase"]
[SourceQuality "1"]
[TimeControl "40/5400+30:1800+30"]

{[%evp 9,58,0,28,17,29,21,24,16,14,0,6,17,0,0,15,0,0,0,40,-22,-22,-32,-14,-79,-79,-100,-52,-62,-71,-73,7,4,0,-60,-42,-40,-14,-78,-71,-96,-86,-237,-231,-249,-241,-1073,-1072,-6322,-6403,-2097,-1295]} 1. d4 {[%emt 0:00:04]} Nf6 {[%emt 0:01:05]} 2. c4 {[%emt 0:00:02]} g6 {[%emt 0:00:09]} 3. d5 {[%emt 0:00:08]} b5 {[%emt 0:03:35]} 4. cxb5 {[%emt 0:01:07]} a6 {[%emt 0:02:11]} 5. bxa6 {[%emt 0:04:33]} Bxa6 {[%emt 0:03:30]} 6. Nc3 {[%emt 0:00:13] E60: King's Indian: Unusual lines and Fianchetto Variation without Nc3.} c6 {[%emt 0:06:41] [#]} 7. e4 $146 {[%emt 0:08:11]} ({Predecessor:} 7. dxc6 Nxc6 8. g3 Bg7 9. Bg2 O-O 10. Nh3 Bb7 11. O-O Na5 12. e4 d6 13. Nf4 {½-½ (63) Dol,G-Van Son,J Netherlands 1989}) 7... Bxf1 {[%emt 0:02:01]} 8. Kxf1 {[%emt 0:00:04] White has an edge.} Bg7 {[%emt 0:00:58]} 9. g3 {[%emt 0:00:22]} O-O {[%emt 0:00:36]} 10. Kg2 {[%emt 0:00:31]} cxd5 {[%emt 0:05:17]} 11. exd5 {[%emt 0:00:20]} Qb6 {[%emt 0:01:29]} 12. Nf3 {[%emt 0:05:05]} Qb7 {[%emt 0:13:14]} 13. Re1 {[%emt 0:10:02]} e6 {[%emt 0:05:06]} 14. d6 {[%emt 0:01:16]} (14. Bf4 $14) 14... Nc6 {[%emt 0:01:28][%mdl 1024] Black has compensation.} 15. Kg1 {[%emt 0:03:32]} Ng4 {[%emt 0:14:08]} 16. Qe2 {[%emt 0:13:01]} (16. a4 $1 $11 {keeps the balance.}) 16... Rfb8 $17 {[%emt 0:06:38]} 17. Ne4 {[%emt 0:15:37]} f5 {[%emt 0:07:58]} (17... Bxb2 $2 18. Rb1 Rxa2 19. h3 (19. Nc3 Bxc3 20. Rxb7 Rxe2 $16) 19... Nxf2 20. Nxf2 $16) (17... Qa7 $17) 18. Nc5 $15 {[%emt 0:03:11]} Qa7 {[%emt 0:00:19]} 19. Nd3 {[%emt 0:02:06]} Nd4 {[%emt 0:02:43] Black is more active.} ({Better is} 19... Nb4 $17 {Threatens to win with ...Nxd3.} 20. Nxb4 Rxb4) 20. Nxd4 $11 {[%emt 0:02:36]} Bxd4 {[%emt 0:00:03]} 21. Be3 {[%emt 0:05:46]} (21. h3 $11 Nf6 22. Be3) 21... Bxe3 {[%emt 0:03:07]} 22. fxe3 {[%emt 0:00:08]} Rc8 {[%emt 0:04:02]} 23. b4 {[%emt 0:08:05] [#]} (23. a4 $11 {remains equal.}) 23... Qa3 $1 $17 {[%emt 0:04:13]} 24. h3 {[%emt 0:02:43]} Nf6 {[%emt 0:00:21]} 25. Qb2 $2 {[%emt 0:01:00] White does not recover from this.} (25. Rac1 $17 {might work better.}) 25... Qxd3 $19 {[%emt 0:00:41]} 26. Qxf6 {[%emt 0:00:12]} Qxd6 {[%emt 0:01:36]} 27. Qh4 {[%emt 0:00:16]} (27. Qb2 Qxg3+ 28. Qg2) 27... Rc2 {[%emt 0:00:30] [#] ( -> ...Qd2). Black is clearly winning.} 28. Qf4 {[%emt 0:05:04]} Qd2 {[%emt 0:01:27][%csl Gc2][%cal Rd2g2]} 29. Qf3 {[%emt 0:00:27] Inhibits Qg2+.} Raxa2 {[%emt 0:01:01] Weighted Error Value: White=0.79/Black=0.14 (very precise)} 0-1

[Event "Krakow Championship-A 2022"]
[Site "Krakow"]
[Date "2022.06.26"]
[Round "3.14"]
[White "Mikrut, Dariusz"]
[Black "Gahan M G"]
[Result "1/2-1/2"]
[ECO "D89"]
[WhiteElo "2361"]
[BlackElo "2248"]
[Annotator "TA"]
[PlyCount "64"]
[EventDate "2022.06.25"]
[EventType "swiss"]
[EventCountry "POL"]
[SourceTitle "playchess.com"]
[Source "ChessBase"]
[SourceQuality "1"]
[TimeControl "40/5400+30:1800+30"]

{[%evp 32,64,-27,-49,16,22,127,126,851,35,36,16,17,23,20,0,12,0,45,-435,-436,-437,-431,-436,-432,-434,-229,-230,0,0,0,0,0,0,0]} 1. d4 {[%emt 0:00:04]} Nf6 {[%emt 0:00:34]} 2. c4 {[%emt 0:00:27]} g6 {[%emt 0:00:07]} 3. Nc3 {[%emt 0:00:06]} d5 {[%emt 0:00:04]} 4. cxd5 {[%emt 0:00:27]} Nxd5 {[%emt 0:00:05]} 5. e4 {[%emt 0:00:07]} Nxc3 {[%emt 0:00:03]} 6. bxc3 {[%emt 0:00:05]} Bg7 {[%emt 0:00:06]} 7. Bc4 {[%emt 0:00:06]} c5 {[%emt 0:00:07]} 8. Ne2 {[%emt 0:00:04]} Nc6 {[%emt 0:00:04]} 9. Be3 {[%emt 0:00:07]} O-O {[%emt 0:00:07]} 10. O-O {[%emt 0:00:03]} Bg4 {[%emt 0:00:09]} 11. f3 {[%emt 0:00:06]} Na5 {[%emt 0:00:14]} 12. Bd3 {[%emt 0:00:06]} cxd4 {[%emt 0:00:08]} 13. cxd4 {[%emt 0:00:04]} Be6 {[%emt 0:00:07]} 14. d5 {[%emt 0:00:05]} Bxa1 {[%emt 0:00:07]} 15. Qxa1 {[%emt 0:00:09]} f6 {[%emt 0:00:47]} 16. Bh6 {[%emt 0:09:10]} Re8 {[%emt 0:05:27]} 17. Kh1 {[%emt 0:05:49]} Bf7 {[%emt 0:09:20] D89: Exchange Grünfeld: Classical Line: 10 Be3 cxd4 11 cxd4 Bg4 12 f3 Na5 13 Bd3.} (17... Rc8 $1 $15) 18. Bb5 $11 {[%emt 0:05:24] This bishop pair is nice.} e5 {[%emt 0:01:13]} 19. Bxe8 $16 {[%emt 0:16:33] White is more active.} Bxe8 {[%emt 0:04:28][%mdl 8192] [#]} (19... Qxe8 $16 20. Qc3 Qd8) 20. Ng3 $146 {[%emt 0:04:52]} ({White must play} 20. f4 $1 $18 {[%cal Rf4e5]}) ({Predecessor:} 20. f4 Bb5 21. fxe5 Bxe2 22. Rxf6 Nc4 23. e6 Qc7 24. d6 Nxd6 25. Rf7 Qxf7 26. exf7+ Kxf7 {1-0 (34) Real de Azua,E (2445)-Contin,D (2321) Buenos Aires 2009}) 20... Nc4 {[%emt 0:03:36][%cal Ba5c4,Bc4d6,Bd6f7,Bf7h6][%mdl 32]} 21. Qc1 {[%emt 0:05:12]} Rc8 {[%emt 0:00:48]} 22. f4 {[%emt 0:11:03]} Bb5 {[%emt 0:06:11] And now ...Nd6 would win.} 23. Re1 {[%emt 0:07:48]} Nd6 {[%emt 0:05:31]} 24. Qa3 {[%emt 0:04:15]} Nf7 {[%emt 0:05:14]} 25. Qb2 $2 {[%emt 0:10:45][%mdl 8192]} (25. Nf5 $1 $14 {was the only good move.} Nxh6 26. Nxh6+ Kg7 27. Ng4) 25... Qa5 $19 {[%emt 0:01:04]} ({Worse is} 25... Nxh6 26. Qxb5 exf4 27. Ne2 $15) 26. Rb1 {[%emt 0:00:41][%cal Of4e5]} Nxh6 {[%emt 0:00:31]} 27. fxe5 {[%emt 0:00:09] [#]} fxe5 {[%emt 0:00:50]} 28. h3 {[%emt 0:02:38]} (28. Qxe5 Nf7) 28... Rc3 {[%emt 0:03:43]} (28... Ba6 $142 29. Qxe5 Nf7) 29. Qd2 {[%emt 0:05:52] [#]} Ra3 {[%emt 0:00:10]} ({Black should try} 29... Qa3 $1 $19 30. Rxb5 Rxg3 31. Rxb7 Qe3) 30. Qxh6 $11 {[%emt 0:00:28] The position is equal.} Rxg3 {[%emt 0:00:09]} 31. Qh4 $1 {[%emt 0:00:13]} Rc3 {[%emt 0:07:14] Hoping for ...a6.} 32. Qe7 {[%emt 0:02:42]} Qc7 {[%emt 0:17:33] Weighted Error Value: White=0.85/Black=0.67} 1/2-1/2